Cogmind - Beta 10.2 @@@ ROGUE MODE // 2021.05.20 @ 00:16:44 Player: Sudoku Result: Destroyed by G-47 Trooper with Particle Gun Performance ------------- Evolutions (0) 0 Regions Visited (2) 400 Robots Destroyed (43) 215 Value Destroyed (992) 992 Prototype IDs (2) 40 Alien Tech Used (0) 0 Bonus (0) 0 TOTAL SCORE: 1647 Bonus ------- None Cogmind --------- Core Integrity 0/250 Matter 220/300 Energy 70/100 System Corruption 0% Temperature Cool (9) Movement Walking (210) Ox3 Location -10/Mines Parts ------- > --- POWER (1) -------- (None) > --- PROPULSION (2) --- Aluminum Leg > --- UTILITY (2) ------ Large Storage Unit Large Storage Unit > --- WEAPON (2) ------- Welding Torch > --- INVENTORY (16) --- Light Ion Engine Light Ion Engine Small Storage Unit Medium Storage Unit Large Battery (300) Medium Matter Pod (100) Medium Matter Pod (75) Medium Matter Pod (0) Medium Matter Pod (0) Datajack Datajack Datajack Peak State ------------ > --- POWER ------------ Ion Engine > --- PROPULSION ------- Aluminum Leg Aluminum Leg > --- UTILITY ---------- Small Storage Unit Large Storage Unit > --- WEAPON ----------- Assault Rifle Mining Laser > --- INVENTORY -------- Light Ion Engine Light Ion Engine Light Treads Light Treads Medium Storage Unit Large Storage Unit Large Battery Medium Matter Pod EM Pulse Gun Grenade Launcher [Rating: 8] Favorites ----------- Power Ion Engine Engine Ion Engine Propulsion Aluminum Leg Leg Aluminum Leg Utility Large Storage Unit Storage Large Storage Unit Weapon Light Assault Rifle Energy Gun Small Laser Ballistic Gun Light Assault Rifle Launcher Grenade Launcher Special Weapon Mining Laser Build | -11 -10 -10 ------- Run | Scr Mat Min Slots Evolved . | . . . Power . | . . . Propulsion . | . . . Utility . | . . . Weapon . | . . . Parts Attached 35 | 7 17 11 Power 3 | 1 1 1 Engine 3 | 1 1 1 Core . | . . . Reactor . | . . . Propulsion 9 | 2 4 3 Treads . | . . . Leg 9 | 2 4 3 Wheel . | . . . Hover . | . . . Flight . | . . . Utility 4 | 2 2 . Device . | . . . Storage 4 | 2 2 . Processor . | . . . Hackware . | . . . Protection . | . . . Artifact . | . . . Weapon 19 | 2 10 7 Energy Gun 7 | 2 4 1 Energy Cannon . | . . . Ballistic Gun 6 | . 3 3 Ballistic Cannon . | . . . Launcher 2 | . 1 1 Special Weapon 4 | . 2 2 Impact Weapon . | . . . Slashing Weapon . | . . . Piercing Weapon . | . . . Special Melee Weapon . | . . . Unidentified Prototypes . | . . . Parts Lost 18 | . 6 12 Power 2 | . . 2 Propulsion 4 | . . 4 Utility . | . . . Weapon 12 | . 6 6 Highest Loss Streak 6 | . 2 6 Average Slot Usage (%) 95 | . 97 92 Engine 13 | . 14 13 Leg 27 | . 28 24 Storage 28 | . 28 28 Energy Gun 10 | . 14 1 Ballistic Gun 11 | . 8 19 Launcher 1 | . . 2 Special Weapon 1 | . 1 . Naked Turns . | . . . Heaviest Build 41 | 17 41 41 Greatest Support 20 | 20 20 20 Greatest Overweight (x) 4 | . 2 4 Average Overweight (x) . | . . 1 Largest Inventory Capacity 16 | 8 16 16 Average Capacity 13 | 6 13 16 Most Carried 16 | 8 16 16 Average Carried 13 | 4 12 15 Final Capacity 16 | 8 16 16 Final Carried 16 | 8 16 12 Class Distribution -------------------- 50% | Mutant 49% | Scavenger-Mutant Dominant Class ---------------- Mutant | -10/Materials Scavenger-Mutant | -10/Mines Resources | -11 -10 -10 ----------- Run | Scr Mat Min Matter Collected 1007 | 294 469 244 Remotely . | . . . Salvage Created 1104 | 94 618 392 Parts 77 | 4 36 37 Haulers Intercepted 1 | . 1 . Recyclers Shooed 1 | . . 1 Parts Field Recycled . | . . . Retrieved Matter . | . . . Parts Self-Destructed . | . . . Prevented . | . . . Kills | -11 -10 -10 ------- Run | Scr Mat Min Combat Hostiles Destroyed 36 | . 16 20 Guns 22 | . 11 11 AOE 14 | . 5 9 Classes Destroyed 9 | 2 4 3 Worker 2 | 2 . . Builder 2 | . . 2 Tunneler 1 | . . 1 Hauler 1 | . 1 . Recycler 1 | 1 . . Watcher 2 | . 2 . Swarmer 13 | . 3 10 Grunt 21 | . 13 8 Assembled 2 | . . 2 Best Kill Streak 15 | 2 3 15 Combat Bots Only 10 | . 3 10 Max Kills in Single Turn 3 | 1 3 3 Gunslinging . | . . . Exploded 3 | . 3 3 Melee . | . . . Uniques/NPCs Destroyed . | . . . Combat | -11 -10 -10 -------- Run | Scr Mat Min Damage Taken 1708 | . 741 967 Core 267 | . 80 187 Absorbed by Shields . | . . . Core Remaining (%) 100 | 100 . . Volleys Fired 172 | 10 71 91 Largest 2 | 2 2 2 Hottest 120 | 100 120 60 Shots Fired 243 | 20 109 114 Gun 210 | 20 95 95 Cannon . | . . . Launcher 19 | . 1 18 Special 14 | . 13 1 Kinetic 122 | . 28 94 Thermal 83 | 20 61 2 Explosive 19 | . 1 18 Electromagnetic 19 | . 19 . Robot Hit Streak 11 | 4 11 9 Robot Miss Streak 5 | 1 5 5 Penetration Max . | . . . Secondary Targets 2 | . 1 1 Max Gunslinging Chain 1 | . 1 1 Shots Hit Robots 136 | 12 60 64 Core Hits 86 | 4 31 51 Critical Hits . | . . . Critical Kills . | . . . Critical Parts Destroyed . | . . . Melee Attacks . | . . . Impact . | . . . Slashing . | . . . Piercing . | . . . Sneak Attacks . | . . . Combat Hostiles . | . . . Follow-up Attacks . | . . . Damage Inflicted 2831 | 189 1319 1323 Guns 1453 | 189 738 526 Cannons . | . . . Explosions 1352 | . 557 795 Melee . | . . . Ramming . | . . . Kinetic 692 | . 166 526 Thermal 801 | 189 504 108 Explosive 1122 | . 433 689 Electromagnetic 216 | . 216 . Impact . | . . . Slashing . | . . . Piercing . | . . . Highest Corruption . | . . . Average Corruption . | . . . Corruption Purged . | . . . Overload Shots . | . . . Overflow Damage 109 | . 87 22 Projectiles . | . . . Explosions 109 | . 87 22 Melee . | . . . Knockbacks . | . . . Impact . | . . . Kinetic . | . . . Secondary . | . . . Self-Inflicted Damage 96 | . 39 57 Shots 4 | . 1 3 Rammed . | . . . Targets Rammed . | . . . Kicked . | . . . Crushed . | . . . Highest Temperature 315 | 234 315 20 Average Temperature 76 | 103 79 5 Received Heat Transfer 627 | . 357 270 Effects 1 | . 1 . Matter Decay 1 | . 1 . Siege Activations . | . . . Robots Corrupted . | . . . Combat Hostiles . | . . . Parts Fried 1 | . 1 . Impact Corruptions . | . . . Robots Melted . | . . . Combat Hostiles . | . . . Parts Melted 3 | 1 2 . Heat Transferred 1901 | 555 1121 225 Parts Sabotaged . | . . . Parts Stolen . | . . . Parts Stripped . | . . . Power Chain Reactions 2 | . 2 . Missiles Intercepted . | . . . Alert | -11 -10 -10 ------- Run | Scr Mat Min Peak Influence 341 | 15 254 341 Initial 36 | . 9 36 Average 138 | 4 128 205 Maximum Alert Level 1 | . 1 1 Low Security (%) 71 | 100 81 36 Level 1 28 | . 18 63 Level 2 . | . . . Level 3 . | . . . Level 4 . | . . . Level 5 . | . . . High Security . | . . . Max Security . | . . . Squads Dispatched 2 | . 2 . Investigation 1 | . 1 . Extermination . | . . . Reinforcement 1 | . 1 . Assault . | . . . Garrison . | . . . Intercept . | . . . Construction Impeded . | . . . Haulers Reinforced . | . . . Stealth | -11 -10 -10 --------- Run | Scr Mat Min Distress Signals 6 | . 3 3 Communications Jammed . | . . . Distress Signals . | . . . Times Spotted 51 | . 27 24 Peak Tracking Total 7 | . 5 7 Tactical Retreats 1 | . 1 . Traps | -11 -10 -10 ------- Run | Scr Mat Min Traps Triggered 1 | . 1 . Indirectly . | . . . Trap Hack Attempts . | . . . Triggered . | . . . Disarmed . | . . . Reprogrammed . | . . . Reused . | . . . Traps Extracted . | . . . Installed . | . . . Triggered . | . . . Machines | -11 -10 -10 ---------- Run | Scr Mat Min Machines Disabled 5 | . 4 1 Max in Single Turn 2 | . 2 1 Machines Sabotaged . | . . . Garrisons Compromised . | . . . Overloaded Fab Kills . | . . . Fab Network Shutdowns . | . . . Hacking | -11 -10 -10 --------- Run | Scr Mat Min Machines Accessed 8 | . 8 . Terminals 6 | . 6 . Fabricators . | . . . Repair Stations . | . . . Recycling Units 2 | . 2 . Scanalyzers . | . . . Garrison Access . | . . . Total Hacks 24 | . 24 . Successful 8 | . 8 . Failed 16 | . 16 . Catastrophic 1 | . 1 . Database Lockouts . | . . . Manual 15 | . 15 . Terminals 18 | . 18 . Fabricators . | . . . Repair Stations . | . . . Recycling Units 6 | . 6 . Scanalyzers . | . . . Garrison Access . | . . . Terminal Hacks 4 | . 4 . Robot Analysis 1 | . 1 . Prototype ID Bank 1 | . 1 . Zone Layout 2 | . 2 . Fabricator Hacks . | . . . Repair Station Hacks . | . . . Recycling Unit Hacks . | . . . Scanalyzer . | . . . Garrison Access Hacks . | . . . Unauthorized Hacks 4 | . 4 . Terminals 2 | . 2 . Track 2 | . 2 . Fabricators . | . . . Repair Stations . | . . . Recycling Units 2 | . 2 . Recyclers 1 | . 1 . Mask 1 | . 1 . Scanalyzers . | . . . Garrison Access . | . . . Data Cores Recovered . | . . . Used . | . . . Hacking Detections 8 | . 8 . Full Trace Events 1 | . 1 . Feedback Events . | . . . Feedback Blocked . | . . . Robot Schematics Acquired . | . . . Robots Built . | . . . Matter . | . . . Time . | . . . Total Robot Build Rating . | . . . Part Schematics Acquired . | . . . Parts Built . | . . . Matter . | . . . Time . | . . . Total Part Build Rating . | . . . Parts Repaired . | . . . Time . | . . . Parts Recycled . | . . . Recycled Matter . | . . . Retrieved Matter . | . . . Retrieved Components . | . . . Parts Scanalyzed . | . . . Part Schematics Acquired . | . . . Parts Damaged . | . . . Bothacking | -11 -10 -10 ------------ Run | Scr Mat Min Used RIF Installer . | . . . Robots Hacked . | . . . Non-combat . | . . . Combat . | . . . Robot Hacks Applied . | . . . Relay Couplers Released . | . . . Robots Rewired . | . . . Allies Hacked . | . . . Hacks Repelled . | . . . Allies | -11 -10 -10 -------- Run | Scr Mat Min Total Allies . | . . . Largest Group . | . . . Highest-Rated Group . | . . . Highest-Rated Ally . | . . . Total Orders . | . . . Ally Attacks . | . . . Total Damage . | . . . Kills . | . . . Allies Corrupted . | . . . Allies Melted . | . . . Intel | -11 -10 -10 ------- Run | Scr Mat Min Robot Analysis Total 1 | . 1 . Derelict Logs Recovered . | . . . Drone Launches . | . . . Drone Recoveries . | . . . Exploration | -11 -10 -10 ------------- Run | Scr Mat Min Turns Passed 1786 | 133 1202 451 Spaces Moved 872 | 69 652 151 Core 4 | 4 . . Treads . | . . . Legs 868 | 65 652 151 Wheels . | . . . Hover . | . . . Flight . | . . . Fastest Speed 50 | 50 120 150 Average Speed 139 | 115 138 155 Slowest Speed 240 | 120 180 240 Overloaded Moves . | . . . Propulsion Burnouts . | . . . Robots Hopped . | . . . Cave-ins Triggered . | . . . Exploration Rate (%) 36 | 4 76 30 Regions Visited 2 Branch Regions 1 Pre-discovered Areas 1 | . . 1 Known Exits Taken . | . . . Unknown Exits Taken 2 | 1 1 . Scrap Searched . | . . . Spaces Dug 8 | . 8 . Terrain Destroyed 143 | . 38 105 Melee . | . . . Projectile 11 | . 11 . AOE 132 | . 27 105 Terrain Rammed . | . . . Walls Destroyed . | . . . Machines Disabled . | . . . Actions | -11 -10 -10 --------- Run | Scr Mat Min Total 1192 | 101 820 271 Wait 53 | 2 37 14 Move 870 | 68 651 151 Hop . | . . . Pick Up 43 | 14 25 4 Fast Attach 4 | 1 2 1 Attach 18 | 6 4 8 Detach . | . . . Swap 13 | . 11 2 Drop 19 | . 19 . Fire 172 | 10 71 91 Melee . | . . . Ram . | . . . Kick . | . . . Crush . | . . . Escape Stasis . | . . . Rewire . | . . . Trap . | . . . Miscellaneous . | . . . Route ------- -11/Scrapyard -10/Materials (discovered 3 exits: [*Mat x2] / [*Min]) -10/Mines (discovered 1 exit: [*Mat]) History --------- Turn | Location | Event 2 | -11/Scrapyard | Met Revision 17 7 | -11/Scrapyard | Discovered new exit (range 15) 134 | -11/Scrapyard | Entered Materials 219 | -10/Materials | Discovered new exit (range 11) 306 | -10/Materials | Build established: Mutant 933 | -10/Materials | Discovered new exit (range 7) 1106 | -10/Materials | Build established: Scavenger-Mutant 1125 | -10/Materials | Discovered new exit (range 4) 1336 | -10/Materials | Entered Mines 1345 | -10/Mines | Learned location of Storage (-7) 1393 | -10/Mines | Excavation squad dispatched 1393 | -10/Mines | A large section of the Mines collapsed 1476 | -10/Mines | Discovered new exit (range 12) 1478 | -10/Mines | Destroyed 10 combat bots 1680 | -10/Mines | Core integrity fell below 50% 1714 | -10/Mines | Lost 3 parts (3w) 1756 | -10/Mines | Core integrity fell below 20% 1787 | -10/Mines | Destroyed by G-47 Trooper with Particle Gun Last Messages --------------- 01686_ R-06 Scavenger collects Lgt. Assault Rifle. 01692_ Acquired Lgt. Assault Rifle. 01696_ Acquired 15 matter. 01715_ S-10 Pest destroyed. 01715_ Switching to secondary target: S-10 Pest. 01723_ Ion Engine destroyed. 01740_ S-10 Pest destroyed. 01741_ Acquired 13 matter. 01743_ Lgt. Assault Rifle destroyed. 01749_ S-10 Pest destroyed. 01750_ Acquired 14 matter. 01750_ Aluminum Leg destroyed. 01758_ S-10 Pest destroyed. 01759_ Acquired 15 matter. 01762_ Aluminum Leg destroyed. 01767_ G-34 Mercenary destroyed. 01768_ Acquired 43 matter. 01781_ Ion Engine destroyed. 01783_ Lgt. Assault Rifle destroyed. 01787_ K-01 Serf collects debris. Map ----- +----------------------------------------------------+ | ?????????????????????????????????????????????????? | | ?????????????????????????????????????????????????? | | ?????????????????????????????????????????????????? | | ?????????????????????????????????????????????????? | | ?????????????????????????????????????????????????? | | ?????????????????????????????????????????????????? | | ?????????????????????????????????????????????????? | | ?????????????????????????????????????????????????? | | ?????????????????????????????????????????????????? | | ?????????????????????????????????????????????????? | | ?????????????????????????????????????????????????? | | ?????????????????????????????????????????????????? | | ?????????????????????????????????????????????????? | | ?????????????????????????????????????????????????? | | ?????????????????????????????????????????????????? | | ?????????????????????????????????????????????????? | | ?????????????????????????????????????????????????? | | ???###???????????????????????????????????????????? | | ??## ##?????????????????###??????????????????????? | | ??# ##??????####??????# ??????????????????????? | | ??# #?????## ##?????#[[??????????????????????? | | ???# ##????# #?????#=#??????????????????????? | | #### ###??# #?????#$#### #??????????????? | | ##?## ##????#ss* ????????? | | #??## ##???#g### ????????? | | ## #??## #####@#???????? #?????????? | | ?# #### =*k=#??????????????????????? | | ?# ######??????????????????????? | | ?## ## ## #???????????????????????????? | | ######## ## ##???????????????????????????? | | #??### ### #????????????????????????????? | | #????# #?## #????????????????????????????? | | ###### #??## ##??#####?????????????????????? | | # #???####??## ##????????????????????? | | # #?????????# ##???????????????????? | | #####?????????# ##??????????????????? | | # #??????????????# #??????????????????? | | #???????????????# #??????????????????? | | ###????????????????# #??????????????????? | | # # #??????????????????# #??????????????????? | | #######???????????????## ##??????????????????? | | # # ## #######??????????## #???????????????????? | | # # ##??????????# #???????????????????? | | ## #??????????# #???????????????????? | | # ############## ###?????????????????? | | ## #?????????????????? | | #### #### ## #?????????????????? | | # # #?# ## """ #?????????????????? | | # # # ##?# """ #?????????????????? | | ## ## ########??#### """ #?????????????????? | +----------------------------------------------------+ Best States ------------- Heat Dissipation 25 Energy Generation 10 Energy Capacity 250 Matter Stores 300 Matter Capacity 300 Sight Range 16 Terrain Scan Density 10 Evasion (%) 40 Item Schematics ----------------- None Robot Schematics ------------------ None Fabricated ------------ Nothing Alien Tech Used ----------------- None Achievements -------------- None Challenges ------------ None Game ------ Seed DefenseReactiveThrusters Manual? 0 Play Time 00:34:22 Cumulative 105.6 hours Start 2021.05.19 @ 23:47:17 End 2021.05.20 @ 00:16:44 Sessions 1 Manual Loads 0 Difficulty Rogue Special Mode None Game No. 77 Rogue 77 Adventurer 0 Explorer 0 Win Type - Total 0 Types 0/0/0/0/0/0/0/0/0 Lore% 30 Gallery% 46 Achievement% 37 Wizard Run 0 Options --------- ASCII 0 Keyboard 0 Movement Numpad Keybinds 0 Fullscreen 0 Font 16/SmallcapsGlow Map View 76x50 Tactical HUD 1 Map Filters NONE Filters NONE Steam 1 RUN: dda95484-a19c-4bef-91d6-0809358a2265